fUSD/lending_fUSD_20240904
["ID","MTS","AMOUNT","RATE_DAILY","PERIOD"]
[337167223,1725471038753,-2116.2561326,0.00015,2]
[337167224,1725471038764,-40809.09779846,0.00015,2]
[337167225,1725471038806,-14000.0,0.00015,2]
[337167226,1725471038817,-135565.638,0.00015,2]
[337167227,1725471038829,-515.12711388,0.00015,2]
[337167228,1725471038841,-250.485,0.00015,2]
[337167229,1725471038853,-6671.04362498,0.00015,2]
[337167230,1725471038864,-615.002,0.00015,2]
[337167232,1725471039569,-150.26,0.00014843,2]
[337167233,1725471039579,-245.66311807,0.00015,2]
[337167234,1725471039735,-1383.75,0.00015,2]
[337167235,1725471039747,-477.21,0.00015,2]
[337167236,1725471039762,-687.02021086,0.00015,2]
[337167237,1725471039774,-1007.52312096,0.00015,2]
[337167238,1725471039954,-719.26763437,0.00015,2]
[337167248,1725471042967,-624.0,0.00014116,2]
[337167249,1725471042977,-848.2,0.000144,2]
[337167250,1725471042987,-18252.52964782,0.00015,2]
[337167257,1725471045618,-1749.0,0.00014228,2]
[337167258,1725471045630,-11718.0,0.00014228,2]
[337167259,1725471045640,-328.80565253,0.00014999,2]
[337167260,1725471045649,-227950.85679749,0.00015,2]
[337167339,1725471076405,47000.0,0.00025,60]
[337167352,1725471254739,150.0,0.00011244,2]
[337167353,1725471254761,38.33,0.00011244,2]
[337167354,1725471270587,150.0,0.00010959,2]
[337167355,1725471270986,111.63,0.00010959,2]
[337167356,1725471345602,40385.36938225,0.00025,60]
[337167357,1725471364858,150.0,0.00012088,2]
[337167358,1725471364886,150.0,0.00012088,2]
[337167359,1725471364918,103.68,0.00012088,2]
[337167360,1725471456769,1000.0,0.00025,60]
[337167361,1725471458359,1000.0,0.00025,61]
[337167362,1725471461192,1000.0,0.00025,62]
[337167363,1725471629364,1266.36,0.00027,120]
[337167364,1725471772868,-180.97641428,0.00012806,2]
[337167365,1725471772888,-563.61271786,0.00012841,2]
[337167366,1725471772909,-589.0,0.00012906,2]
[337167367,1725471772931,-565.632,0.00012941,2]
[337167368,1725471772953,-935.21456039,0.00013007,2]
[337167369,1725471772982,-250.0,0.00013007,2]
[337167370,1725471773004,-434.56430747,0.00013007,2]
[337167371,1725471874452,-485.0,0.00013007,2]
[337167372,1725471887185,150.0,0.00011705,2]
[337167373,1725471887210,150.0,0.00011705,2]
[337167374,1725471887232,95.04,0.00011705,2]
[337167429,1725472238118,-180.97641427,0.00013388,2]
[337167430,1725472238127,-150.0,0.00013488,2]
[337167431,1725472238137,-150.0,0.00013488,2]
[337167432,1725472238146,-150.0,0.00013488,2]
[337167433,1725472238155,-214.07024681,0.00013488,2]
[337167434,1725472238164,-666.24,0.00013513,2]
[337167435,1725472238173,-250.0,0.00013517,2]
[337167436,1725472238182,-325.92637221,0.00013523,2]
[337167437,1725472238193,-1257.43565756,0.00013523,2]
[337167438,1725472238204,-300.10797023,0.00013523,2]
[337167439,1725472238213,-250.0,0.0001354,2]
[337167440,1725472238222,-32.9919886,0.00013541,2]
[337167441,1725472238234,-217.0080114,0.00013541,2]
[337167442,1725472238244,-2490.0952,0.00013579,2]
[337167443,1725472238253,-1353.729,0.0001358,2]
[337167444,1725472238262,-150.0,0.00013654,2]
[337167445,1725472238271,-150.0,0.00013671,2]
[337167446,1725472238280,-499.99,0.00013671,2]
[337167447,1725472238289,-135.27287136,0.00013697,2]
[337167449,1725472238312,-3974.95712864,0.00013697,2]
[337167450,1725472238321,-2751.0,0.00013699,2]
[337167451,1725472238331,-200.0,0.00013699,2]
[337167452,1725472238344,-3193.31,0.00013699,2]
[337167453,1725472238353,-162.66,0.00013699,2]
[337167454,1725472238362,-500.0,0.00013699,2]
[337167455,1725472238371,-500.0,0.00013699,2]
[337167456,1725472238381,-214.86,0.0001372,2]
[337167457,1725472238391,-150.99,0.0001372,2]
[337167458,1725472238400,-518.2,0.0001372,2]
[337167459,1725472238410,-800.0,0.00013728,2]
[337167460,1725472238419,-150.0,0.00013737,2]
[337167461,1725472238428,-150.0,0.0001375,2]
[337167462,1725472238437,-8237.67,0.00013751,2]
[337167463,1725472238447,-3977.25,0.00013751,2]
[337167464,1725472238456,-150.0,0.00013821,2]
[337167465,1725472238466,-247.497072,0.00013909,2]
[337167466,1725472238475,-395.04,0.00013969,2]
[337167467,1725472238484,-169.79,0.00013971,2]
[337167468,1725472238493,-150.0,0.00013987,2]
[337167469,1725472238503,-150.0,0.00013987,2]
[337167470,1725472238512,-200.0,0.00014053,2]
[337167471,1725472238523,-150.0,0.00014154,2]
[337167472,1725472238532,-447.0,0.00014228,2]
[337167473,1725472238541,-1546.0,0.00014228,2]
[337167474,1725472238551,-1260.0,0.00014228,2]
[337167475,1725472238561,-624.0,0.00014228,2]
[337167476,1725472238570,-810.0,0.00014228,2]
[337167477,1725472238580,-557.0,0.00014228,2]
[337167478,1725472238589,-931.0,0.00014228,2]
[337167479,1725472238599,-150.0,0.00014228,2]
[337167480,1725472238608,-1899.0,0.00014228,2]
[337167481,1725472238617,-552.0,0.00014228,2]
[337167482,1725472238626,-248.0,0.00014228,2]
[337167483,1725472238635,-387.158,0.00014228,2]
[337167484,1725472238644,-3341.0,0.00014228,2]
[337167485,1725472238654,-805.0,0.00014228,2]
[337167486,1725472238663,-1134.0,0.00014228,2]
[337167487,1725472238673,-5855.0,0.00014228,2]
[337167488,1725472238682,-13467.0,0.00014228,2]
[337167489,1725472238691,-150.0,0.00014228,2]
[337167490,1725472238701,-3733.0,0.00014228,2]
[337167491,1725472238710,-150.09,0.00014228,2]
[337167492,1725472238719,-1144.0,0.00014228,2]
[337167493,1725472238728,-150.0,0.00014228,2]
[337167494,1725472238738,-150.0,0.00014237,2]
[337167495,1725472238751,-150.0,0.0001432,2]
[337167496,1725472238759,-893.09,0.000144,2]
[337167497,1725472238769,-150.0,0.00014487,2]
[337167498,1725472238777,-150.0,0.00014487,2]
[337167499,1725472238789,-150.0,0.000145,2]
[337167500,1725472238798,-1703.0,0.000146,2]
[337167501,1725472238807,-150.0,0.00014653,2]
[337167502,1725472238817,-1074.76820816,0.000147,2]
[337167503,1725472238828,-1081.70507489,0.000147,2]
[337167504,1725472238838,-150.0,0.00014737,2]
[337167505,1725472238847,-154.9,0.00014753,2]
[337167506,1725472238856,-421.15547501,0.00014778,2]
[337167507,1725472238865,-150.0,0.00014786,2]
[337167508,1725472238874,-255.150283,0.00014809,2]
[337167509,1725472238883,-150.0,0.0001482,2]
[337167510,1725472238892,-1185.41627808,0.0001485,2]
[337167511,1725472238901,-909.368,0.00014861,2]
[337167512,1725472238910,-255.0,0.00014864,2]
[337167513,1725472238919,-500.0,0.0001488,2]
[337167514,1725472238927,-200.0,0.0001488,2]
[337167515,1725472238937,-1377.06693137,0.00014893,2]
[337167516,1725472238946,-1377.06693137,0.00014894,2]
[337167517,1725472238955,-1377.06693137,0.00014895,2]
[337167518,1725472238964,-1377.06693137,0.00014896,2]
[337167519,1725472238974,-1377.06693137,0.00014898,2]
[337167520,1725472238984,-1047.9001579,0.00014898,2]
[337167521,1725472238993,-1377.06693137,0.00014899,2]
[337167522,1725472239002,-1047.90015789,0.00014899,2]
[337167523,1725472239012,-267.5252,0.000149,2]
[337167524,1725472239021,-8009.0606,0.000149,2]
[337167525,1725472239031,-165.29072006,0.000149,2]
[337167526,1725472239041,-155.94268703,0.000149,2]
[337167527,1725472239052,-495.1235063,0.000149,2]
[337167528,1725472239062,-179.0820506,0.000149,2]
[337167529,1725472239072,-8500.0,0.000149,2]
[337167530,1725472239082,-335.0061,0.000149,2]
[337167531,1725472239091,-1377.06693137,0.000149,2]
[337167532,1725472239102,-5937.25204869,0.000149,2]
[337167533,1725472239112,-395.85881481,0.000149,2]
[337167534,1725472239121,-1047.90015789,0.000149,2]
[337167535,1725472239131,-1000.0,0.000149,2]
[337167536,1725472239140,-851.0,0.000149,2]
[337167537,1725472239150,-1467.96313218,0.000149,2]
[337167538,1725472239160,-172.46467046,0.000149,2]
[337167539,1725472239169,-358.0,0.000149,2]
[337167540,1725472239179,-150.0,0.00014962,2]
[337167541,1725472239188,-1704.62854782,0.0001497,3]
[337167542,1725472239198,-500.0,0.00014973,2]
[337167543,1725472239208,-500.0,0.00014979,2]
[337167544,1725472239218,-381.58579996,0.00014979,2]
[337167545,1725472239228,-500.0,0.00014979,2]
[337167546,1725472239239,-500.0,0.00014979,2]
[337167547,1725472239249,-500.0,0.00014979,2]
[337167548,1725472239259,-500.0,0.00014979,2]
[337167549,1725472239269,-235.81894178,0.00014979,2]
[337167550,1725472239279,-10675.28169532,0.0001498,2]
[337167551,1725472239289,-6250.30467534,0.0001498,3]
[337167552,1725472239298,-7695.33407958,0.0001498,3]
[337167553,1725472239307,-167.5,0.0001498,2]
[337167554,1725472239319,-186.40062206,0.00014986,2]
[337167555,1725472239328,-204.14757017,0.00014986,2]
[337167556,1725472239337,-269.52727598,0.00014986,2]
[337167557,1725472239347,-32478.15893759,0.0001499,2]
[337167558,1725472239360,-3391.02565311,0.0001499,2]
[337167594,1725472240431,-2925.98626232,0.0001499,2]
[337167595,1725472240442,-79453.25159359,0.0001499,2]
[337167596,1725472240454,-7761.35773757,0.0001499,2]
[337167597,1725472240466,-2051.51251238,0.0001499,2]
[337167598,1725472240485,-11609.2,0.0001499,2]
[337167599,1725472240496,-969.65529697,0.0001499,2]
[337167600,1725472240507,-686.78613931,0.0001499,2]
[337167601,1725472240527,-4146.17723095,0.0001499,2]
[337167602,1725472240540,-642.79791123,0.0001499,2]
[337167603,1725472240551,-998.486475,0.0001499,2]
[337167604,1725472240565,-2110.66568425,0.0001499,2]
[337167605,1725472240604,-391.951146,0.0001499,2]
[337167606,1725472240616,-1458.91842534,0.0001499,2]
[337167607,1725472240635,-34390.09549259,0.0001499,2]
[337167608,1725472240646,-88016.45226705,0.0001499,2]
[337167609,1725472240658,-64524.22854119,0.0001499,2]
[337167610,1725472240669,-27053.90907254,0.0001499,2]
[337167611,1725472240680,-6512.80077973,0.0001499,2]
[337167623,1725472242630,-359.73856219,0.0001499,2]
[337167624,1725472242745,-688924.20127995,0.0001499,2]
[337167625,1725472242755,-167.5,0.0001499,2]
[337167626,1725472242764,-167.5,0.0001499,2]
[337167627,1725472242774,-164.40282627,0.00014999,2]
[337167628,1725472242784,-1000.0,0.00014999,2]
[337167629,1725472242793,-1000.0,0.00014999,4]
[337167630,1725472242803,-1000.0,0.00014999,11]
[337167631,1725472242812,-1564.58493252,0.00014999,5]
[337167632,1725472242822,-140551.68840521,0.00015,2]
[337167633,1725472242832,-66982.84526759,0.00015,2]
[337167634,1725472242844,-177805.24882099,0.00015,2]
[337167635,1725472242886,-5000.0,0.00015,2]
[337167642,1725472243814,-328.04999985,0.00015,2]
[337167643,1725472243826,-13779.17179148,0.00015,2]
[337167644,1725472243843,-7300.0,0.00015,2]
[337167645,1725472243854,-12722.77961447,0.00015,2]
[337167646,1725472243865,-501.86744235,0.00015,2]
[337167647,1725472243877,-783.88604338,0.00015,2]
[337167648,1725472243888,-1720.3100005,0.00015,2]
[337167649,1725472243899,-440.9201824,0.00015,2]
[337167650,1725472243910,-1778.99,0.00015,2]
[337167651,1725472243921,-5420.415,0.00015,2]
[337167652,1725472243933,-3192.9558,0.00015,2]
[337167653,1725472243943,-636.49603942,0.00015,2]
[337167654,1725472243955,-2002.45323238,0.00015,2]
[337167655,1725472243966,-1302.1840501,0.00015,2]
[337167656,1725472243977,-619.25861685,0.00015,2]
[337167660,1725472245846,-1161.0,0.00015,2]
[337167661,1725472245859,-2289.91559988,0.00015,2]
[337167662,1725472245871,-792.73224283,0.00015,2]
[337167663,1725472245937,-6770.28999999,0.00015,2]
[337167664,1725472245949,-656.37,0.00015,2]
[337167665,1725472246026,-3114.46963974,0.00015,2]
[337167666,1725472246039,-1470.51803953,0.00015,2]
[337167667,1725472246050,-2985.11727615,0.00015,2]
[337167668,1725472246063,-5930.48493681,0.00015,2]
[337167669,1725472246074,-63430.63033729,0.00015,2]
[337167670,1725472246119,-5486.25292594,0.00015,2]
[337167671,1725472314424,150.0,0.00010959,2]
[337167672,1725472314447,25.41,0.00010959,2]
[337167673,1725472407122,150.0,0.00012149,2]
[337167674,1725472407144,150.0,0.00012149,2]
[337167675,1725472407166,55.53,0.00012149,2]
[337167676,1725472714682,550.0,0.00011,2]
[337167677,1725472860102,150.0,0.00010959,2]
[337167678,1725472860124,8.61,0.00010959,2]
[337167679,1725472976914,-269.1433,0.00012807,2]
[337167680,1725472976937,-1445.19972517,0.00012807,2]
[337167681,1725472976961,-6084.10027483,0.00012907,2]
[337167682,1725473037588,150.0,0.00011843,2]
[337167683,1725473037610,150.0,0.00011843,2]
[337167684,1725473037630,37.75,0.00011843,2]
[337167685,1725473132590,5000.0,0.00027,120]
[337167686,1725473232375,-476.79092517,0.00012907,2]
[337167687,1725473232396,-4641.88025031,0.00012907,5]
[337167688,1725473240715,-448.13,0.00012907,5]
[337167689,1725473252059,-28.66092517,0.00012907,5]
[337167690,1725473252082,-448.13,0.00012941,2]
[337167691,1725473332041,-250.0,0.00012945,2]
[337167692,1725473357695,150.0,0.00010959,2]
[337167693,1725473357717,20.59,0.00010959,2]
[337167694,1725473376547,-151.59,0.00012957,2]
[337167695,1725473376578,-600.0,0.00013,2]
[337167696,1725473376607,-102.17862089,0.00013056,2]
[337167697,1725473396586,-155.76,0.00012954,2]
[337167698,1725473401836,-171.89,0.00012963,2]
[337167713,1725473431903,-8.664e-05,0.00013056,2]
[337167714,1725473431954,-147.82129247,0.00013056,2]
[337167715,1725473431963,-300.0,0.00013487,2]
[337167716,1725473431973,-150.0,0.00013488,2]
[337167717,1725473431982,-150.0,0.00013488,2]
[337167718,1725473431992,-150.0,0.00013488,2]
[337167719,1725473432002,-150.0,0.00013488,2]
[337167720,1725473432011,-150.0,0.00013488,2]
[337167721,1725473432021,-150.0,0.00013488,2]
[337167722,1725473432030,-150.0,0.00013488,2]
[337167723,1725473432039,-150.0,0.00013505,2]
[337167724,1725473432049,-150.0,0.00013522,2]
[337167725,1725473432058,-150.0,0.00013527,2]
[337167726,1725473432067,-150.0,0.00013538,2]
[337167727,1725473432076,-150.0,0.00013539,2]
[337167728,1725473432085,-150.0,0.00013557,2]
[337167729,1725473432095,-150.0,0.00013567,2]
[337167730,1725473432107,-3651.37,0.00013567,2]
[337167731,1725473432116,-150.0,0.00013574,2]
[337167732,1725473432125,-1000.0,0.00013585,2]
[337167733,1725473432134,-150.0,0.00013588,2]
[337167734,1725473432144,-150.0,0.00013591,2]
[337167735,1725473432153,-150.0,0.00013606,2]
[337167736,1725473432163,-150.0,0.00013608,2]
[337167737,1725473432172,-150.0,0.00013625,2]
[337167738,1725473432182,-150.0,0.00013638,2]
[337167739,1725473432191,-150.0,0.00013638,2]
[337167740,1725473432201,-150.0,0.00013643,2]
[337167741,1725473432211,-150.0,0.00013645,2]
[337167742,1725473432221,-150.0,0.0001366,2]
[337167743,1725473432230,-150.0,0.00013677,2]
[337167744,1725473432239,-150.0,0.00013685,2]
[337167745,1725473432248,-150.0,0.00013687,2]
[337167746,1725473432257,-150.0,0.00013687,2]
[337167747,1725473432267,-150.0,0.00013694,2]
[337167748,1725473432276,-500.0,0.00013699,2]
[337167749,1725473432285,-150.0,0.00013712,2]
[337167750,1725473432295,-103.88716994,0.00013724,2]
[337167751,1725473432307,-46.11283006,0.00013724,2]
[337167752,1725473432316,-150.0,0.00013729,2]
[337167753,1725473432325,-150.0,0.00013737,2]
[337167754,1725473432335,-150.0,0.00013746,2]
[337167756,1725473432344,-150.0,0.00013763,2]
[337167758,1725473432353,-150.0,0.00013764,2]
[337167759,1725473432363,-82.18907671,0.00013781,2]
[337167760,1725473432374,-67.81092329,0.00013781,2]
[337167761,1725473432384,-150.0,0.00013787,2]
[337167762,1725473432394,-150.0,0.00013787,2]
[337167763,1725473432403,-150.0,0.00013798,2]
[337167764,1725473432412,-150.0,0.00013803,2]
[337167765,1725473432423,-150.0,0.00013815,2]
[337167766,1725473432433,-150.0,0.00013832,2]
[337167767,1725473432442,-150.0,0.00013837,2]
[337167768,1725473432451,-87.18907671,0.00013843,2]
[337167769,1725473432464,-62.81092329,0.00013843,2]
[337167770,1725473432473,-150.0,0.00013849,2]
[337167771,1725473432483,-228.11,0.00013865,2]
[337167772,1725473432492,-150.0,0.00013867,2]
[337167773,1725473432502,-150.0,0.00013882,2]
[337167774,1725473432511,-150.0,0.00013884,2]
[337167775,1725473432520,-150.0,0.00013887,2]
[337167776,1725473432529,-150.0,0.00013901,2]
[337167777,1725473432538,-150.0,0.00013918,2]
[337167778,1725473432547,-150.0,0.00013921,2]
[337167779,1725473432555,-150.0,0.00013936,2]
[337167780,1725473432564,-805.0,0.00013936,2]
[337167781,1725473432573,-1938.66907671,0.00013936,2]
[337167782,1725473432584,-450.44936041,0.00013936,2]
[337167783,1725473432766,-804.00153138,0.00013936,2]
[337167784,1725473432778,-147.8800315,0.00013936,2]
[337167785,1725473432787,-1134.0,0.00013936,2]
[337167786,1725473432796,-248.0,0.00013936,2]
[337167787,1725473432805,-150.0,0.00013937,2]
[337167788,1725473432815,-150.0,0.00013937,2]
[337167789,1725473432824,-150.0,0.00013953,2]
[337167790,1725473432833,-150.0,0.00013961,2]
[337167791,1725473432843,-150.0,0.0001397,2]
[337167792,1725473432852,-150.0,0.00013987,2]
[337167793,1725473432862,-150.0,0.00013987,2]
[337167794,1725473432871,-150.0,0.00014,2]
[337167795,1725473432881,-150.0,0.00014004,2]
[337167796,1725473432890,-93.72273068,0.00014022,2]
[337167805,1725473437879,-56.27726932,0.00014022,2]
[337167806,1725473437889,-150.0,0.00014037,2]
[337167807,1725473437898,-150.0,0.00014039,2]
[337167808,1725473437907,-127.45827978,0.0001404,2]
[337167809,1725473437919,-22.54172022,0.0001404,2]
[337167810,1725473437929,-150.0,0.00014056,2]
[337167811,1725473437938,-150.0,0.00014073,2]
[337167812,1725473437949,-150.0,0.00014079,2]
[337167813,1725473437958,-61.89161448,0.00014087,2]
[337167814,1725473438133,-88.10838552,0.00014087,2]
[337167815,1725473438143,-150.0,0.00014087,2]
[337167816,1725473438154,-150.0,0.00014091,2]
[337167817,1725473438163,-171.53,0.00014098,2]
[337167818,1725473438174,-337.75,0.00014107,2]
[337167819,1725473438185,-150.0,0.00014108,2]
[337167820,1725473438196,-150.0,0.00014119,2]
[337167821,1725473438206,-150.0,0.00014125,2]
[337167822,1725473438219,-150.0,0.00014137,2]
[337167823,1725473438228,-150.0,0.00014142,2]
[337167824,1725473438237,-3733.0,0.00014146,2]
[337167825,1725473438247,-5855.0,0.00014146,2]
[337167826,1725473438257,-7460.256,0.00014146,2]
[337167827,1725473438267,-150.0,0.00014146,2]
[337167828,1725473438276,-1144.0,0.00014146,2]
[337167829,1725473438286,-1078.0,0.00014146,2]
[337167830,1725473438296,-150.0,0.00014158,2]
[337167831,1725473438306,-150.0,0.00014159,2]
[337167832,1725473438315,-150.0,0.00014177,2]
[337167833,1725473438325,-150.0,0.00014187,2]
[337167834,1725473438335,-150.0,0.00014194,2]
[337167835,1725473438345,-150.0,0.00014198,2]
[337167836,1725473438354,-150.0,0.00014211,2]
[337167837,1725473438364,-150.0,0.00014228,2]
[337167838,1725473438373,-150.0,0.00014228,2]
[337167839,1725473438383,-150.0,0.00014228,2]
[337167840,1725473438392,-150.0,0.00014228,2]
[337167841,1725473438402,-624.0,0.00014228,2]
[337167842,1725473438411,-447.0,0.00014228,2]
[337167843,1725473438423,-1260.0,0.00014228,2]
[337167844,1725473438432,-1546.0,0.00014228,2]
[337167845,1725473438442,-557.0,0.00014228,2]
[337167846,1725473438452,-931.0,0.00014228,2]
[337167847,1725473438463,-810.0,0.00014228,2]
[337167848,1725473438473,-552.0,0.00014228,2]
[337167849,1725473438482,-1899.0,0.00014228,2]
[337167850,1725473438492,-150.0,0.00014228,2]
[337167851,1725473438502,-150.0,0.00014237,2]
[337167852,1725473438511,-150.0,0.00014237,2]
[337167853,1725473438521,-150.0,0.00014237,2]
[337167854,1725473438531,-150.0,0.00014237,2]
[337167855,1725473438540,-150.0,0.00014246,2]
[337167856,1725473438550,-150.0,0.00014263,2]
[337167857,1725473438560,-150.0,0.00014276,2]
[337167858,1725473438570,-150.0,0.0001428,2]
[337167859,1725473438580,-150.0,0.00014287,2]
[337167860,1725473438589,-150.0,0.00014297,2]
[337167861,1725473438599,-150.0,0.00014315,2]
[337167862,1725473438609,-150.0,0.00014316,2]
[337167863,1725473438619,-752.83,0.00014327,3]
[337167864,1725473438628,-150.0,0.00014332,2]
[337167865,1725473438638,-150.0,0.00014337,2]
[337167866,1725473438648,-150.0,0.00014349,2]
[337167867,1725473438658,-150.0,0.00014355,2]
[337167868,1725473438667,-150.0,0.00014366,2]
[337167869,1725473438677,-150.0,0.00014383,2]
[337167870,1725473438687,-150.0,0.00014387,2]
[337167871,1725473438696,-150.0,0.00014387,2]
[337167872,1725473438705,-150.0,0.00014395,2]
[337167873,1725473438716,-759.12,0.000144,2]
[337167874,1725473438726,-150.0,0.00014401,2]
[337167875,1725473438736,-150.0,0.00014418,2]
[337167876,1725473438745,-150.0,0.00014434,2]
[337167877,1725473438756,-150.0,0.00014435,2]
[337167878,1725473438766,-150.0,0.00014437,2]
[337167879,1725473438777,-150.0,0.00014452,2]
[337167880,1725473438787,-150.0,0.0001447,2]
[337167881,1725473438797,-150.0,0.00014474,2]
[337167882,1725473438807,-150.0,0.00014487,2]
[337167883,1725473438816,-150.0,0.00014487,2]
[337167884,1725473438826,-150.0,0.00014504,2]
[337167885,1725473438835,-150.0,0.00014513,2]
[337167886,1725473438844,-201.198837,0.00014521,2]
[337167887,1725473438854,-150.0,0.00014521,2]
[337167888,1725473438864,-150.0,0.00014537,2]
[337167889,1725473438875,-150.0,0.00014537,2]
[337167890,1725473438885,-150.0,0.00014538,2]
[337167891,1725473438895,-150.0,0.00014552,2]
[337167892,1725473438904,-150.0,0.00014556,2]
[337167893,1725473438914,-150.0,0.00014573,2]
[337167894,1725473438923,-171.89,0.00014583,2]
[337167895,1725473438932,-150.0,0.00014587,2]
[337167896,1725473438941,-150.0,0.0001459,2]
[337167897,1725473438950,-150.0,0.00014592,2]
[337167898,1725473438962,-421.15547501,0.00014605,2]
[337167899,1725473438971,-150.0,0.00014607,2]
[337167900,1725473438981,-150.0,0.00014625,2]
[337167901,1725473438992,-150.0,0.00014631,2]
[337167902,1725473439001,-150.0,0.00014637,2]
[337167903,1725473439010,-150.0,0.00014642,2]
[337167904,1725473439020,-150.0,0.00014659,2]
[337167905,1725473439030,-150.0,0.00014671,2]
[337167906,1725473439039,-150.0,0.00014676,2]
[337167907,1725473439049,-150.0,0.00014687,2]
[337167908,1725473439058,-150.0,0.00014687,2]
[337167909,1725473439068,-150.0,0.00014693,2]
[337167910,1725473439077,-150.0,0.0001471,2]
[337167911,1725473439087,-150.0,0.00014711,2]
[337167912,1725473439096,-150.0,0.00014728,2]
[337167913,1725473439110,-150.0,0.00014737,2]
[337167914,1725473439119,-150.0,0.00014745,2]
[337167915,1725473439129,-150.0,0.0001475,2]
[337167916,1725473439138,-150.0,0.00014762,2]
[337167917,1725473439149,-150.0,0.0001478,2]
[337167918,1725473439158,-420.0,0.00014783,2]
[337167919,1725473439167,-150.0,0.00014786,2]
[337167920,1725473439177,-150.0,0.00014789,2]
[337167921,1725473439188,-150.0,0.00014797,2]
[337167922,1725473439197,-255.0,0.0001481,2]
[337167923,1725473439207,-150.0,0.00014814,2]
[337167924,1725473439218,-150.0,0.00014829,2]
[337167925,1725473439228,-150.0,0.00014831,2]
[337167926,1725473439238,-150.0,0.00014836,2]
[337167927,1725473439247,-150.0,0.00014836,2]
[337167928,1725473439256,-150.0,0.00014848,2]
[337167929,1725473439266,-150.0,0.00014866,2]
[337167930,1725473439275,-150.0,0.00014868,2]
[337167931,1725473439285,-500.0,0.0001488,2]
[337167932,1725473439294,-200.0,0.0001488,2]
[337167933,1725473439304,-400.8773,0.0001488,2]
[337167934,1725473439314,-5216.3723,0.0001488,2]
[337167935,1725473439324,-557.8916,0.0001488,2]
[337167936,1725473439333,-150.0,0.00014883,2]
[337167937,1725473439343,-727.494,0.00014886,2]
[337167938,1725473439353,-150.0,0.00014886,2]
[337167939,1725473439362,-499.99,0.00014899,2]
[337167940,1725473439371,-979.15725625,0.000149,2]
[337167941,1725473439381,-979.15725625,0.000149,2]
[337167942,1725473439390,-979.15725625,0.000149,2]
[337167943,1725473439400,-979.15725625,0.000149,2]
[337167944,1725473439409,-583.34,0.000149,2]
[337167945,1725473439419,-156.9345,0.000149,2]
[337167946,1725473439510,-1000.0,0.000149,2]
[337167947,1725473439521,-979.15725625,0.000149,2]
[337167948,1725473439531,-161.95141977,0.000149,2]
[337167949,1725473439541,-179.08205058,0.000149,2]
[337167950,1725473439550,-1176.49161774,0.000149,2]
[337167951,1725473439558,-965.49801986,0.000149,2]
[337167952,1725473439567,-150.0,0.000149,2]
[337167953,1725473439578,-150.0,0.00014907,2]
[337167954,1725473439587,-150.0,0.00014917,2]
[337167956,1725473439597,-150.0,0.00014935,2]
[337167957,1725473439606,-150.0,0.00014936,2]
[337167958,1725473439615,-150.0,0.00014947,2]
[337167959,1725473439625,-150.0,0.00014952,2]
[337167960,1725473439635,-150.0,0.00014969,2]
[337167961,1725473439644,-505.80481578,0.00014973,2]
[337167962,1725473439653,-164.77577904,0.00014986,2]
[337167963,1725473439664,-268.6406169,0.00014986,2]